bitfinex-derivatives/quotes_SOLF0:USTF0_20241002
["timestamp","ask_amount","ask_price","bid_price","bid_amount"]
[1727871303636,9.0,145.0,144.95,3.4498]
[1727871303839,9.0,145.0,144.91,26.47]
[1727871304040,9.0,145.0,144.92,3.4505]
[1727871304646,9.0,145.0,144.9,3.4511]
[1727871304940,9.0,145.0,144.89,0.12502]
[1727871305135,3.4504,144.93,144.89,0.12502]
[1727871305440,26.47,144.98,144.89,0.12502]
[1727871305640,3.4499,144.96,144.89,0.12502]
[1727871305937,9.0,145.0,144.93,26.47]
[1727871306137,3.4495,144.97,144.93,3.4503]
[1727871306337,9.0,145.0,144.93,3.4503]
[1727871306643,3.4498,144.96,144.92,3.4505]
[1727871307138,9.0,145.0,144.89,26.59502]
[1727871307444,9.0,145.0,144.89,0.12502]
[1727871307742,3.4494,144.98,144.94,3.45]
[1727871307937,9.0,145.0,144.91,26.47]
[1727871308240,9.0,145.0,144.93,26.47]
[1727871308438,9.0,145.0,144.94,2.7889]
[1727871309136,9.0,145.0,144.96,26.47]
[1727871309336,9.0,145.0,144.98,3.4492]
[1727871309532,0.12502,145.07,144.98,26.47]
[1727871309843,0.12502,145.07,144.98,3.4492]
[1727871310139,26.59502,145.07,144.95,26.59502]
[1727871310438,3.4485,145.01,144.95,26.59502]
[1727871310640,26.59502,145.07,144.97,26.47]
[1727871310641,0.12502,145.07,144.97,26.47]
[1727871310841,0.12502,145.07,144.97,29.89585979]
[1727871311338,0.12502,145.07,145.02,26.47]
[1727871311745,0.12502,145.07,145.04,26.47]
[1727871311948,0.12502,145.07,145.06,3.4473]
[1727871312145,0.12502,145.07,145.06,29.9173]
[1727871312337,0.12502,145.13,145.06,26.47]
[1727871312538,3.4462,145.11,145.07,3.447]
[1727871312737,0.12502,145.13,145.04,26.47]
[1727871312936,3.4462,145.11,145.07,3.447]
[1727871313144,0.12502,145.13,145.07,26.47]
[1727871313748,3.57092,145.13,145.08,3.4468]
[1727871314041,0.12502,145.13,145.07,26.47]
[1727871314638,3.4461,145.12,145.08,3.4468]
[1727871314946,0.12502,145.13,145.01,3.62871873]
[1727871315157,0.12502,145.13,145.01,26.59502]
[1727871315452,26.47,145.12,145.01,26.59502]
[1727871315653,1.3838,145.11,145.01,26.59502]
[1727871315844,3.4468,145.08,145.02,3.4481]
[1727871316045,1.3838,145.11,145.01,0.12502]
[1727871316351,26.47,145.1,145.01,0.12502]
[1727871316541,3.4483,145.02,145.01,0.12502]
[1727871316948,3.4478,145.04,145.01,0.12502]
[1727871317146,1.3838,145.11,145.01,26.59502]
[1727871317343,1.3838,145.11,145.01,30.04332]
[1727871317553,1.3838,145.11,145.01,0.12502]
[1727871318155,3.4482,145.03,145.01,0.12502]
[1727871318350,1.3838,145.11,145.01,0.12502]
[1727871318752,3.447,145.08,145.01,0.12502]
[1727871319067,1.3838,145.11,145.03,3.4479]
[1727871319252,1.3838,145.11,145.03,26.47]
[1727871319455,1.3838,145.11,145.05,3.4475]
[1727871319851,3.4466,145.1,145.05,3.4475]
[1727871320049,1.3838,145.11,145.05,3.4475]
[1727871320447,1.3838,145.11,145.03,26.47]
[1727871320448,3.4468,145.09,145.06,3.4473]
[1727871320652,1.3838,145.11,145.03,26.47]
[1727871320849,0.12502,145.13,145.05,26.47]
[1727871321053,3.4462,145.11,145.08,3.4468]
[1727871321256,0.12502,145.13,145.05,26.47]
[1727871321653,3.4471,145.07,145.04,3.4477]
[1727871321853,0.12502,145.13,145.03,26.47]
[1727871322056,26.47,145.12,145.01,1.20642]
[1727871322256,26.47,145.1,145.01,0.12502]
[1727871322956,1.3347,145.09,145.01,0.12502]
[1727871323354,1.3844,145.08,145.01,0.12502]
[1727871323969,1.3844,145.08,145.02,6.98]
[1727871324262,1.3844,145.08,145.03,26.47]
[1727871324769,1.3347,145.09,145.03,26.47]
[1727871324969,0.12502,145.13,145.03,26.47]
[1727871325270,0.12502,145.13,145.02,6.98]
[1727871325271,3.4462,145.11,145.05,26.47]
[1727871325571,0.12502,145.13,145.06,6.98]
[1727871325773,0.12502,145.13,145.11,3.4459]
[1727871325958,0.12502,145.13,145.1,33.45]
[1727871326265,3.4446,145.18,145.14,3.4453]
[1727871326467,1.3805,145.22,145.12,26.47]
[1727871327074,1.3805,145.22,145.14,3.4454]
[1727871327268,1.3805,145.22,145.12,29.97487123]
[1727871327573,3.56942,145.19,145.14,3.4454]
[1727871327768,3.56942,145.19,145.14,10.4254]
[1727871328362,0.12502,145.19,145.15,26.47]
[1727871329664,0.12502,145.19,145.16,3.4447]
[1727871329867,0.12502,145.19,145.15,26.47]
[1727871330273,0.12502,145.19,145.16,3.4447]
[1727871330777,0.12502,145.19,145.17,6.96]
[1727871331271,0.12502,145.19,145.17,10.4047]
[1727871331670,0.12502,145.19,145.13,26.47]
[1727871331969,0.12502,145.19,145.14,6.96]
[1727871332171,3.56942,145.19,145.14,6.96]
[1727871332373,0.12502,145.19,145.15,3.4451]
[1727871332577,3.4449,145.17,145.14,6.96]
[1727871332766,0.12502,145.19,145.1,26.47]
[1727871332970,0.12502,145.19,145.11,6.96]
[1727871333362,0.12502,145.19,145.11,10.406]
[1727871333561,0.12502,145.19,145.11,6.96]
[1727871333765,3.4448,145.17,145.11,6.96]
[1727871333966,0.12502,145.19,145.13,3.4455]
[1727871334169,0.12502,145.19,145.11,6.96]
[1727871334365,0.12502,145.19,145.13,26.47]
[1727871335676,3.56922,145.19,145.13,26.47]
[1727871336079,3.56922,145.19,145.14,3.4452]
[1727871336371,0.12502,145.19,145.13,26.47]
[1727871336573,0.12502,145.19,145.13,33.43]
[1727871337375,3.4451,145.16,145.13,36.8755]
[1727871338076,3.445,145.16,145.13,36.8756]
[1727871338579,3.4446,145.18,145.15,3.4451]
[1727871338765,0.12502,145.19,145.13,33.43]
[1727871340281,3.4447,145.18,145.14,3.4452]
[1727871340577,0.12502,145.19,145.13,33.43]
[1727871340781,0.12502,145.19,145.15,26.47]
[1727871340977,0.12502,145.19,145.17,3.4446]
[1727871341165,0.12502,145.19,145.15,26.47]
[1727871341676,0.12502,145.19,145.16,3.4449]
[1727871342071,0.12502,145.19,145.17,3.4447]
[1727871342471,0.12502,145.19,145.15,26.47]
[1727871342676,0.12502,145.19,145.16,3.4448]
[1727871343173,0.12502,145.19,145.15,26.47]
[1727871343372,0.12502,145.19,145.17,3.4446]
[1727871343570,0.12502,145.19,145.15,26.47]
[1727871343778,0.12502,145.19,145.17,3.4445]
[1727871344074,0.12502,145.19,145.17,10.4045]
[1727871344476,0.12502,145.19,145.18,29.9145]
[1727871344680,3.4432,145.24,145.18,26.47]
[1727871344977,0.12502,145.25,145.21,26.47]
[1727871345176,0.12502,145.25,145.21,33.43]
[1727871345572,0.12502,145.25,145.22,3.4434]
[1727871346074,0.12502,145.25,145.21,36.80831603]
[1727871346479,0.12502,145.25,145.21,33.43]
[1727871346670,3.4431,145.24,145.21,36.8737]
[1727871346982,0.12502,145.25,145.21,33.43]
[1727871347479,0.12502,145.31,145.23,26.47]
[1727871348375,3.4425,145.27,145.23,29.9132]
[1727871348578,0.12502,145.31,145.21,33.43]
[1727871349484,3.442,145.29,145.26,3.4424]
[1727871349689,0.12502,145.31,145.26,6.96]
[1727871350084,3.4423,145.27,145.26,6.96]
[1727871350280,0.12502,145.31,145.23,6.96]
[1727871350787,3.4429,145.25,145.23,6.96]
[1727871351284,0.12502,145.31,145.23,6.96]
[1727871352181,3.4427,145.26,145.23,6.96]
[1727871352375,0.12502,145.31,145.23,6.96]
[1727871352883,3.443,145.24,145.23,6.96]
[1727871353087,0.12502,145.31,145.21,26.47]
[1727871353388,0.12502,145.31,145.19,26.59502]
[1727871353580,6.8838,145.29,145.2,6.74]
[1727871353786,8.1135,145.28,145.2,6.74]
[1727871354183,1.3239,145.27,145.2,6.74]
[1727871354889,3.4433,145.23,145.2,10.1839]
[1727871355085,1.3735,145.28,145.21,29.90973787]
[1727871355283,1.3947,145.33,145.21,29.90973787]
[1727871355284,1.3239,145.3,145.21,26.47]
[1727871356085,3.4427,145.26,145.23,3.4433]
[1727871356582,1.3239,145.3,145.23,26.47]
[1727871356784,3.4421,145.28,145.25,3.4428]
[1727871357183,1.3239,145.3,145.25,3.4428]
[1727871357385,3.4423,145.28,145.25,3.4428]
[1727871357783,1.3239,145.3,145.26,3.4425]
[1727871357991,3.442,145.29,145.26,3.4425]
[1727871358391,1.3239,145.3,145.26,3.4425]
[1727871358588,3.442,145.29,145.26,3.4425]
[1727871359184,3.4423,145.28,145.25,3.4428]
[1727871359387,1.49852,145.31,145.23,6.74]
[1727871359583,1.49852,145.31,145.21,26.47]
[1727871359779,1.49852,145.31,145.21,6.74]
[1727871359989,26.47,145.29,145.21,6.74]
[1727871360185,3.444,145.2,145.19,0.12502]
[1727871360391,26.47,145.27,145.19,0.12502]
[1727871360591,1.3619,145.26,145.19,0.12502]
[1727871361587,1.3619,145.26,145.2,3.37235014]
[1727871361803,1.2849,145.28,145.21,33.21]
[1727871361983,3.4427,145.26,145.23,3.4432]
[1727871362391,1.2849,145.28,145.21,36.73042638]
[1727871362692,1.2849,145.28,145.21,6.74]
[1727871363186,1.2849,145.28,145.21,33.21]
[1727871363693,3.4421,145.28,145.25,3.4426]
[1727871363890,1.2863,145.3,145.23,26.47]
[1727871364194,1.2863,145.3,145.21,33.21]
[1727871364398,1.2863,145.3,145.22,3.4434]
[1727871364595,1.2863,145.3,145.21,33.21]
[1727871364786,1.2863,145.3,145.25,3.4427]
[1727871364787,3.4422,145.28,145.25,3.4427]
[1727871364985,0.12502,145.31,145.25,6.74]
[1727871365193,0.12502,145.31,145.27,26.47]
[1727871365592,3.56652,145.31,145.27,29.9121]
[1727871365995,0.12502,145.31,145.29,3.4417]
[1727871366199,0.12502,145.31,145.29,26.47]
[1727871366388,0.12518,145.32,145.29,33.21]
[1727871366590,0.12518,145.32,145.31,3.4414]
[1727871366790,0.12502,145.37,145.31,26.47]
[1727871367192,3.56502,145.37,145.33,3.4408]
[1727871367900,0.12502,145.37,145.31,26.47]
[1727871368097,0.12502,145.37,145.29,26.47]
[1727871368298,0.12502,145.37,145.27,26.47]
[1727871368593,26.59502,145.37,145.27,3.4423]
[1727871368996,26.59502,145.37,145.25,6.86502]
[1727871369203,3.4413,145.32,145.28,3.442]
[1727871369797,3.4414,145.31,145.28,3.442]
[1727871370697,6.74,145.35,145.25,0.12502]
[1727871370903,1.3266,145.34,145.25,0.12502]
[1727871371103,27.7966,145.34,145.25,0.12502]
[1727871371301,26.47,145.32,145.25,0.12502]
[1727871371491,6.74,145.31,145.25,0.12502]
[1727871371801,3.4426,145.26,145.25,0.12502]
[1727871371997,6.74,145.27,145.19,0.12502]
[1727871372194,1.3508,145.26,145.19,0.12502]
[1727871372993,3.4436,145.22,145.19,0.12502]
[1727871373398,1.3508,145.26,145.19,0.12502]
[1727871373601,3.4432,145.24,145.2,3.4438]
[1727871373804,6.74,145.29,145.22,0.5658]
[1727871374305,6.74,145.29,145.22,4.0093]
[1727871374693,6.74,145.29,145.22,0.5658]
[1727871375096,3.444,145.2,145.19,0.12502]
[1727871375297,33.21,145.23,145.13,3.57062]
[1727871375603,6.74,145.22,145.13,0.12502]
[1727871376109,1.2722,145.21,145.13,0.12502]
[1727871377205,1.2722,145.21,145.14,3.4453]
[1727871377606,1.2722,145.21,145.15,3.445]
[1727871377607,3.4444,145.19,145.15,3.445]
[1727871377807,1.2722,145.21,145.13,26.59502]
[1727871378006,1.2722,145.21,145.14,6.74]
[1727871378205,3.4441,145.2,145.16,3.4448]
[1727871378405,1.2722,145.21,145.14,6.74]
[1727871378915,1.2722,145.21,145.13,0.12502]
[1727871379804,1.2722,145.21,145.13,3.57062]
[1727871380012,1.2722,145.21,145.13,0.12502]
[1727871380205,2.6035,145.21,145.13,0.12502]
[1727871380515,3.4449,145.17,145.13,0.12502]
[1727871380808,3.4441,145.2,145.15,3.4451]
[1727871381001,3.9892,145.21,145.15,3.4451]
[1727871381002,1.3857,145.21,145.15,26.47]
[1727871381319,6.88502,145.25,145.15,29.91736151]
[1727871381505,3.4432,145.24,145.18,26.47]
[1727871381699,6.88502,145.25,145.18,26.47]
[1727871382404,6.88502,145.25,145.14,34.8709]
[1727871382604,6.88502,145.25,145.14,26.47]
[1727871382605,33.35502,145.25,145.14,26.47]
[1727871382802,3.4445,145.18,145.15,3.4451]
[1727871383111,26.47,145.23,145.13,6.88502]
[1727871383616,43.02,145.23,145.13,6.88502]
[1727871383909,43.02,145.23,145.13,0.12502]
[1727871384103,43.02,145.21,145.13,0.12502]
[1727871384299,6.66,145.2,145.13,0.12502]
[1727871384709,3.4445,145.18,145.13,0.12502]
[1727871384908,1.3623,145.19,145.13,0.12502]
[1727871385409,3.4446,145.18,145.15,3.445]
[1727871385606,1.3623,145.19,145.13,0.12502]
[1727871385812,3.4454,145.14,145.13,0.12502]
[1727871386910,2.6828,145.18,145.13,0.12502]
[1727871387607,3.4454,145.15,145.13,0.12502]
[1727871388008,2.6828,145.18,145.13,0.12502]
[1727871388619,3.4448,145.17,145.13,0.12502]
[1727871388814,2.6828,145.18,145.13,0.12502]
[1727871389920,3.4454,145.14,145.13,0.12502]
[1727871390313,3.4454,145.14,145.06,44.0994]
[1727871390314,6.66,145.16,145.06,49.68]
[1727871390506,49.68,145.16,145.03,43.02]
[1727871390706,3.4463,145.11,145.08,3.4467]
[1727871391614,49.68,145.16,145.05,6.66]
[1727871391913,49.68,145.16,145.01,1.20482]
[1727871391914,43.02,145.08,145.01,0.12502]
[1727871392219,9.3708,145.07,145.01,0.12502]
[1727871392620,3.4483,145.02,145.01,0.12502]
[1727871393827,3.4494,144.98,144.95,0.12502]
[1727871394223,43.02,145.03,144.95,0.12502]
[1727871394421,3.449,144.99,144.95,0.12502]
[1727871395117,3.449,144.99,144.95,3.57482]
[1727871396721,6.66,145.02,144.95,0.12502]
[1727871397714,3.449,145.0,144.96,3.4495]
[1727871397910,43.02,145.05,144.95,0.12502]
[1727871398115,6.66,145.04,144.95,0.12502]
[1727871398321,3.4511,144.9,144.89,0.12502]
[1727871398723,43.02,144.91,144.84,0.12518]
[1727871399023,43.02,144.89,144.84,0.12518]
[1727871399219,43.02,144.87,144.83,0.12502]
[1727871399415,3.4526,144.84,144.83,0.12502]
[1727871399621,7.02,144.86,144.83,0.12502]
[1727871400018,3.4526,144.84,144.83,0.12502]
[1727871400619,3.453,144.83,144.75,10.41287615]
[1727871401124,43.02,144.87,144.75,10.41287615]
[1727871401322,43.02,144.87,144.79,3.4535]
[1727871401323,7.02,144.86,144.79,3.4535]
[1727871402018,43.02,144.8,144.65,6.57941508]
[1727871402219,50.06,144.8,144.65,6.57941508]
[1727871402612,50.06,144.8,144.69,10.4959]
[1727871402824,50.06,144.8,144.69,7.04]
[1727871403223,50.06,144.82,144.69,50.06]
[1727871403819,1.44532,144.83,144.72,43.02]
[1727871404119,1.44532,144.83,144.73,7.04]
[1727871404323,3.4533,144.81,144.76,3.4543]
[1727871404923,4.89812,144.83,144.79,3.4537]
[1727871405124,1.44532,144.83,144.79,3.4537]
[1727871405324,1.44532,144.83,144.74,43.02]
[1727871405527,4.89822,144.83,144.78,3.4538]
[1727871405826,1.44532,144.83,144.77,7.04]
[1727871406122,1.44532,144.83,144.81,3.4533]
[1727871406123,0.12502,144.83,144.81,3.4533]
[1727871406526,0.12502,144.83,144.76,43.02]
[1727871406732,3.57802,144.83,144.78,3.4538]
[1727871407836,3.57802,144.83,144.79,3.4537]
[1727871408037,3.57802,144.83,144.74,3.4734136]
[1727871408235,3.57802,144.83,144.79,3.4537]
[1727871408428,0.12502,144.83,144.79,3.4537]
[1727871408630,0.12502,144.83,144.73,43.02]
[1727871408928,0.12502,144.83,144.77,3.4542]
[1727871409328,3.4534,144.81,144.77,3.4542]
[1727871409728,0.12502,144.83,144.75,7.04]
[1727871410528,0.12502,144.83,144.76,43.02]
[1727871411331,0.12502,144.83,144.79,43.02]
[1727871411532,0.12502,144.83,144.82,3.453]
[1727871411731,0.12502,144.89,144.82,3.46823352]
[1727871412034,0.12502,144.89,144.85,3.4521]
[1727871412428,0.12502,144.89,144.84,7.04]
[1727871412429,0.12502,144.89,144.83,7.04]
[1727871413430,0.12502,144.89,144.83,10.4928]
[1727871413431,3.4518,144.88,144.83,10.4928]
[1727871413634,0.12502,144.89,144.83,7.04]
[1727871414935,3.4516,144.88,144.84,3.4524]
[1727871415130,0.12502,144.89,144.83,7.04]
[1727871417031,0.12502,144.89,144.86,3.4519]
[1727871417438,0.12502,144.89,144.83,7.04]
[1727871417439,3.4516,144.88,144.85,3.4523]
[1727871418440,3.57642,144.89,144.85,3.4523]
[1727871420244,0.12502,144.89,144.83,7.04]
[1727871420440,0.12502,144.89,144.84,43.02]
[1727871420655,0.12502,144.89,144.82,3.45920336]
[1727871420941,43.02,144.86,144.77,0.12502]
[1727871421142,43.02,144.86,144.78,1.26894015]
[1727871421332,3.4537,144.8,144.77,0.12502]
[1727871421533,43.02,144.83,144.77,0.12502]
[1727871421942,3.4537,144.8,144.77,0.12502]
[1727871422139,43.02,144.83,144.77,0.12502]
[1727871422347,43.02,144.83,144.78,0.5658]
[1727871422540,3.4534,144.81,144.78,4.0198]
[1727871423047,1.3739,144.84,144.78,4.0198]
[1727871423244,3.4529,144.83,144.79,3.4536]
[1727871423443,3.4529,144.83,144.78,0.5658]
[1727871423641,1.3739,144.84,144.78,0.5658]
[1727871423943,3.4537,144.79,144.78,0.5658]
[1727871424640,43.02,144.81,144.77,0.12502]
[1727871424952,43.02,144.81,144.71,74.66502]
[1727871424953,43.02,144.78,144.71,0.12502]
[1727871425243,1.3011,144.77,144.71,0.12502]
[1727871425855,3.4546,144.76,144.72,3.4554]
[1727871426145,7.04,144.81,144.71,0.12502]
[1727871426341,1.3011,144.82,144.71,0.12502]
[1727871426541,8.3411,144.82,144.72,7.04]
[1727871426742,51.3611,144.82,144.72,7.04]
[1727871427148,51.3611,144.82,144.74,3.4547]
[1727871427350,51.3611,144.82,144.72,7.04]
[1727871427739,51.3611,144.82,144.73,3.455]
[1727871428247,3.4543,144.77,144.73,3.455]
[1727871428651,3.4543,144.77,144.74,3.4549]
[1727871428850,3.4543,144.77,144.72,7.04]
[1727871429053,3.4543,144.77,144.73,3.455]
[1727871429251,51.3611,144.82,144.72,7.04]
[1727871429548,51.3611,144.82,144.75,3.4546]
[1727871429748,51.3611,144.82,144.72,7.04]
[1727871429954,1.3011,144.82,144.72,50.06]
[1727871430155,0.12502,144.83,144.72,50.06]
[1727871430353,0.12502,144.83,144.75,43.02]
[1727871430562,0.12502,144.83,144.76,7.04]
[1727871430851,0.12502,144.83,144.76,10.48974044]
[1727871431243,0.12502,144.83,144.79,3.4536]
[1727871431646,3.4535,144.8,144.73,2.2849]
[1727871431841,43.02,144.82,144.74,3.4548]
[1727871432058,43.02,144.82,144.74,10.4948]
[1727871432253,3.4544,144.77,144.74,7.04]
[1727871432554,3.4544,144.77,144.74,10.4949]
[1727871432757,1.3495,144.81,144.72,74.6]
[1727871432758,3.4545,144.76,144.72,74.6]
[1727871432950,44.3225,144.8,144.72,3.4552]
[1727871433144,44.3225,144.8,144.71,7.16502]
[1727871433348,3.4544,144.77,144.71,7.16502]
[1727871433552,3.4544,144.77,144.73,3.455]
[1727871434053,3.4541,144.78,144.71,7.16502]
[1727871434255,1.3025,144.8,144.71,7.16502]
[1727871434450,4.756,144.8,144.77,3.4541]
[1727871434649,4.756,144.8,144.73,43.02]
[1727871434650,4.756,144.8,144.75,7.04]
[1727871435055,1.3025,144.8,144.75,7.04]
[1727871435252,44.3225,144.8,144.71,0.12502]
[1727871435455,44.3225,144.8,144.73,3.4551]
[1727871435655,1.3025,144.8,144.71,7.16502]
[1727871435847,1.3025,144.8,144.72,43.02]
[1727871436049,1.3025,144.8,144.71,0.12502]
[1727871436658,1.3025,144.8,144.74,3.4548]
[1727871436958,1.3025,144.8,144.71,0.12502]
[1727871437458,4.8029,144.81,144.71,0.12502]
[1727871437857,3.4537,144.8,144.76,3.4544]
[1727871438358,1.3495,144.81,144.71,0.12502]
[1727871438559,1.397,144.79,144.71,0.12502]
[1727871439062,3.4546,144.76,144.72,3.4553]
[1727871439263,1.397,144.79,144.71,0.12502]
[1727871439466,43.02,144.78,144.71,0.12502]
[1727871440267,1.397,144.79,144.71,0.12502]
[1727871440655,1.397,144.79,144.71,7.16502]
[1727871440857,1.397,144.79,144.72,3.4554]
[1727871441061,8.437,144.79,144.71,7.16502]
[1727871441362,3.4544,144.77,144.73,3.4551]
[1727871441558,8.437,144.79,144.73,3.4551]
[1727871441760,1.397,144.79,144.71,7.16502]
[1727871442365,1.3495,144.81,144.71,7.16502]
[1727871442662,1.3495,144.81,144.72,43.02]
[1727871442855,4.8029,144.81,144.77,3.454]
[1727871443059,1.3495,144.81,144.75,7.04]
[1727871443257,1.3495,144.81,144.74,7.04]
[1727871443572,3.4546,144.76,144.71,7.16502]
[1727871443867,1.3495,144.81,144.71,7.16502]
[1727871444072,3.4546,144.76,144.72,3.4553]
[1727871444461,3.4546,144.76,144.71,7.16502]
[1727871444664,1.3495,144.81,144.71,7.16502]
[1727871445266,1.3495,144.81,144.76,3.4544]
[1727871445769,1.3495,144.81,144.71,7.16502]
[1727871446270,3.4531,144.82,144.79,3.4537]
[1727871446465,1.43922,144.83,144.75,7.04]
[1727871447165,1.43922,144.83,144.72,7.04]
[1727871447166,43.02,144.82,144.72,7.04]
[1727871447565,3.4546,144.76,144.72,10.4952]
[1727871447866,3.4546,144.76,144.72,7.04]
[1727871448076,3.4546,144.76,144.73,3.455]
[1727871448273,3.4541,144.78,144.72,7.04]
[1727871448472,43.02,144.82,144.72,7.04]
[1727871448767,43.02,144.82,144.74,3.4548]
[1727871449166,3.4545,144.76,144.74,3.4548]
[1727871450068,43.02,144.82,144.74,3.4548]
[1727871450264,43.02,144.82,144.72,7.04]
[1727871450665,3.4537,144.8,144.77,3.4541]
[1727871451971,1.43922,144.83,144.77,3.4541]
[1727871452170,3.4538,144.79,144.77,3.4541]
[1727871452877,3.4537,144.8,144.77,3.4541]
[1727871453274,1.43922,144.83,144.79,3.4537]
[1727871453574,1.43922,144.83,144.76,7.04]
[1727871453773,1.43922,144.83,144.77,7.04]
[1727871453969,0.12502,144.83,144.77,7.04]
[1727871454168,0.12502,144.83,144.77,33.57]
[1727871454371,0.12502,144.83,144.77,3.4542]
[1727871454569,0.12502,144.83,144.75,7.04]
[1727871454978,0.12502,144.83,144.76,3.4545]
[1727871455670,3.4544,144.77,144.73,7.04]
[1727871455973,33.57,144.82,144.73,7.04]
[1727871456272,3.4538,144.79,144.76,3.4543]
[1727871456575,1.3658,144.81,144.73,7.04]
[1727871456776,3.4541,144.78,144.75,3.4547]
[1727871458177,3.4541,144.78,144.73,7.04]
[1727871458371,1.3658,144.81,144.73,7.04]
[1727871458372,3.4535,144.8,144.73,7.04]
[1727871458573,1.3658,144.81,144.73,7.04]
[1727871458973,3.4542,144.78,144.75,3.4546]
[1727871459576,3.4538,144.79,144.76,3.4543]
[1727871460576,4.8192,144.81,144.78,3.454]
[1727871460774,4.8192,144.81,144.73,7.04]
[1727871460981,1.3658,144.81,144.73,7.04]
[1727871461184,3.4538,144.79,144.76,3.4543]
[1727871461480,1.3658,144.81,144.73,7.04]
[1727871461875,0.12502,144.83,144.74,26.53]
[1727871462076,0.12502,144.83,144.71,0.12502]
[1727871462275,26.53,144.81,144.71,0.12502]
[1727871462476,2.5973,144.8,144.71,0.12502]
[1727871462679,2.5973,144.8,144.72,3.53631532]
[1727871462883,1.27,144.79,144.72,3.53631532]
[1727871463385,3.4544,144.77,144.73,3.455]
[1727871463576,3.4544,144.77,144.72,3.53631532]
[1727871463577,3.4544,144.77,144.71,0.12502]
[1727871463780,27.8,144.79,144.71,0.12502]
[1727871464177,3.4546,144.76,144.72,3.4553]
[1727871464382,26.53,144.76,144.71,0.12502]
[1727871465283,3.4552,144.73,144.71,0.12502]
[1727871466696,3.4554,144.72,144.71,0.12502]
[1727871466984,3.4564,144.68,144.65,3.12502]
[1727871467189,7.1,144.73,144.65,3.12502]
[1727871467190,29.1019,144.71,144.65,3.12502]
[1727871467576,3.4563,144.69,144.65,6.58202]
[1727871467787,29.1019,144.71,144.65,3.12502]
[1727871467986,32.5577,144.71,144.66,3.4567]
[1727871468182,29.1019,144.71,144.66,3.4567]
[1727871469184,2.5719,144.71,144.67,3.4564]
[1727871469384,2.5719,144.71,144.65,3.12502]
[1727871469686,3.4554,144.73,144.68,3.4562]
[1727871470086,26.53,144.74,144.65,3.12502]
[1727871470279,9.7174,144.76,144.65,3.12502]
[1727871470280,36.2474,144.76,144.65,3.12502]
[1727871470482,2.6174,144.76,144.67,26.53]
[1727871470684,2.6174,144.76,144.68,7.1]
[1727871470881,3.4565,144.68,144.65,3.12502]
[1727871471286,1.3783,144.69,144.65,3.12502]
[1727871471487,3.4564,144.68,144.65,3.12502]
[1727871472891,2.6942,144.69,144.65,3.12502]
[1727871473189,3.4566,144.67,144.65,3.12502]
[1727871473991,3.4564,144.68,144.65,3.12502]
[1727871474985,26.53,144.72,144.65,3.12502]
[1727871475185,26.53,144.75,144.65,3.12502]
[1727871475490,26.53,144.72,144.65,3.12502]
[1727871475985,3.4563,144.69,144.65,6.58192]
[1727871476191,26.53,144.72,144.65,6.58192]